{"text_format":"1","workbook":"xlsx","n_sheets":7,"sheets":["I.","II.","III.","IV.","V.","obl","zav"],"not_rendered":{"charts":0,"images":0,"macros":1,"external_links":0,"defined_names":1,"comments":0,"pivot_tables":0},"unopened":[],"bounds":{"document_bytes":16777216,"sheet_cells":100000,"rows_first":2000,"rows_last":500,"rows_between":2000,"halvings":0,"cell_chars":16384,"cell_head_chars":4096},"cells_cut":0,"cells_raw":0,"read":"whole","date_system":"1900"}

{"sheet":"I.","index":0,"n_rows":13,"n_cols":12,"rows_kept":13,"cut":false,"hidden":false,"merged":[[1,2,1,4],[2,2,2,8],[1,6,1,9],[6,1,6,7]]}
[null,null,null,null,null,null,null,null,null,null,null,"Приложение №3"]
[{"$f":"IF(ISNA(VLOOKUP(C2,obl!A1:B28,2,FALSE))=TRUE,\"\",(VLOOKUP(C2,obl!A1:B28,2,FALSE)))","v":""},"Област",null,null,null,null,{"$f":"IF(MID(C2,1,2)=MID(C3,1,2),\"\",\"избери заведение с код от същата област \")","v":""},null,null,null,null,"към формуляр 365-О"]
[{"$f":"IF(ISNA(VLOOKUP(C3,zav!B1:C196,2,FALSE))=TRUE,\"\",(VLOOKUP(C3,zav!B1:C196,2,FALSE)))","v":""},"Лечебно заведение"]
[null,"Година ",2023]
[]
[]
[null,"ДЕЙНОСТИ, СВЪРЗАНИ С ДЕТСКОТО ЗДРАВЕОПАЗВАНЕ"]
[]
[1,"1. Посещения на деца от 0 до 7 години"]
[]
[null,"Шифър","В консултацията","По домовете"]
[null,"а",1,2]
[null,"01"]

{"sheet":"II.","index":1,"n_rows":20,"n_cols":11,"rows_kept":20,"cut":false,"hidden":false,"merged":[[10,10,11,10],[10,4,10,7],[10,8,11,8],[10,1,11,1],[10,2,11,2],[10,3,11,3]]}
[]
[{"$f":"I.!A2","v":""},"Област:",{"$f":"I.!C2","v":0}]
[{"$f":"I.!A3","v":""},"Лечебно заведение:",{"$f":"I.!C3","v":0}]
[null,"Година:",{"$f":"I.!C4","v":2023}]
[]
[]
[]
[]
[2,"2. Деца до 7 години под наблюдение на консултацията"]
[null,null,null,null,null,null,null,null,null,null,"ХОРИЗОНТАЛЕН КОНТРОЛ:"]
[null,"Възрастови групи","Шифър","Под наблюдение в началото на годината"," През годината",null,null,null,"Остават под наблюдение в края на годината",null,"к.6= (к.1 +к.2) - (к.3+ к.4+к.5)"]
[null,null,null,null,"Постъпили","напуснали","преминали в следваща възраст","умрели"]
[null,"а","б",1,2,3,4,5,6]
[null,"Всичко","01",null,null,null,null,null,null,null,{"$f":"IF(I14=(D14+E14)-(F14+G14+H14),\"\",\"грешка\")","v":""}]
[null,"под 1 година","02",null,null,null,null,null,null,null,{"$f":"IF(I15=(D15+E15)-(F15+G15+H15),\"\",\"грешка\")","v":""}]
[]
["ВЕРТИКАЛЕН КОНТРОЛ:"]
[null,"ш.01і ш.02",null,{"$f":"IF(D14<D15,\"грешка\",\"\" )","v":""},{"$f":"IF(E14<E15,\"грешка\",\"\" )","v":""},"","","",""]
[null,"ш.02, к.2, табл.2 ³ ш.01, к.1, табл.3",null,null,{"$f":"IF(E15<III.!C13,\"грешка\",\"\" )","v":""}]
[null,"ш.02, к.4, табл.2 ³ ш.01, к.1, табл.4",null,null,null,null,{"$f":"IF(II.!G15<IV.!C16,\"грешка\",\"\" )","v":""}]

{"sheet":"III.","index":2,"n_rows":16,"n_cols":6,"rows_kept":16,"cut":false,"hidden":false,"merged":[]}
[]
[{"$f":"I.!A2","v":""},"Област:",{"$f":"I.!C2","v":0}]
[{"$f":"I.!A3","v":""},"Лечебно заведение:",{"$f":"I.!C3","v":0}]
[null,"Година:",{"$f":"I.!C4","v":2023}]
[]
[]
[]
[]
[3,"3. Наблюдение на новородените"]
[null,null,null,null,null,"ХОРИЗОНТАЛЕН КОНТРОЛ:"]
[null,"Шифър","Постъпили под наблюдение деца през І-вия месец от живота си","Новородени, посетени до 24-я час от изписването",null,"к.1 ³  к2 "]
[null,"а",1,2]
[null,"01",null,null,null,{"$f":"IF(C13<D13,\"грешка\",\"\")","v":""}]
[]
["ВЕРТИКАЛЕН КОНТРОЛ:"]
[null,"ш.01, к.1, табл.3 £ ш.02, к.2, табл.2",{"$f":"IF(II.!E15<C13,\"грешка\",\"\" )","v":""}]

{"sheet":"IV.","index":3,"n_rows":19,"n_cols":9,"rows_kept":19,"cut":false,"hidden":false,"merged":[[11,1,13,1],[11,2,13,2],[11,3,11,5],[12,3,12,4],[12,5,13,5]]}
[]
[{"$f":"I.!A2","v":""},"Област:",{"$f":"I.!C2","v":0}]
[{"$f":"I.!A3","v":""},"Лечебно заведение:",{"$f":"I.!C3","v":0}]
[null,"Година:",{"$f":"I.!C4","v":2023}]
[]
[]
[]
[]
[4,"4. Обслужени деца, достигнали 1-годишна възраст"]
[]
[null,null,null,null,null,null,null,"ХОРИЗОНТАЛЕН КОНТРОЛ:"]
[null,"Шифър","Деца, достигнали 1-годишна възраст през отчетния период","В това число:"]
[null,null,null,"хранени само с майчина кърма до:",null,"получили всички задължителни имунизации"]
[null,null,null,"3 месеца","6 месеца",null,null,"к.1і к.2+ к.3 ","к.1³ к.4 "]
[null,"б",1,2,3,4]
[null,"01",null,null,null,null,null,{"$f":"IF(C16<D16+E16,\"грешка\",\"\")","v":""},{"$f":"IF(C16<F16,\"грешка\",\"\")","v":""}]
[]
["ВЕРТИКАЛЕН КОНТРОЛ:"]
[null,"ш.01, к.1, табл.4 £ ш.02, к.4, табл.2",{"$f":"IF(II.!G15<IV.!C16,\"грешка\",\"\" )","v":""}]

{"sheet":"V.","index":4,"n_rows":24,"n_cols":7,"rows_kept":24,"cut":false,"hidden":false,"merged":[[22,6,22,8],[21,2,21,4],[21,6,21,8],[22,2,22,4],[23,6,23,8],[23,2,23,4]]}
[]
[{"$f":"I.!A2","v":""},"Област:",{"$f":"I.!C2","v":0}]
[{"$f":"I.!A3","v":""},"Лечебно заведение:",{"$f":"I.!C3","v":0}]
[null,"Година:",{"$f":"I.!C4","v":2023}]
[]
[]
[]
[]
[5,"5. Деца от 0 до 59 месеца със съмнения за пневмония"]
[null,null,null,null,null,"ХОРИЗОНТАЛЕН КОНТРОЛ:"]
[null,"Шифър","Всичко","от тях: получили антибиотици",null,"к.1³ к.2"]
[null,"а",1,2]
[null,"01",null,null,null,{"$f":"IF(C13<D13,\"грешка\",\"\")","v":""}]
[]
[]
[]
[]
[]
[]
[]
[null,"Данни за лицето попълнило е-формуляр"]
[null,"Име и фамилия",null,null,null,null,{"$f":"IF(C22=\"\",\"попълни име и фамилия\",\"\")","v":"попълни име и фамилия"}]
[null,"телефон",null,null,null,null,{"$f":"IF(C23=\"\",\"попълни телефон\",\"\")","v":"попълни телефон"}]
[null,"е-mail",null,null,null,null,{"$f":"IF(C24=\"\",\"попълни e-mail\",\"\")","v":"попълни e-mail"}]

{"sheet":"obl","index":5,"n_rows":28,"n_cols":2,"rows_kept":28,"cut":false,"hidden":true,"merged":[]}
["01 Благоевград          ","01"]
["02 Бургас               ","02"]
["03 Варна                ","03"]
["04 Велико Търново       ","04"]
["05 Видин                ","05"]
["06 Враца                ","06"]
["07 Габрово              ","07"]
["08 Добрич               ","08"]
["09 Кърджали             ","09"]
["10 Кюстендил            ","10"]
["11 Ловеч                ","11"]
["12 Монтана              ","12"]
["13 Пазарджик            ","13"]
["14 Перник               ","14"]
["15 Плевен               ","15"]
["16 Пловдив              ","16"]
["17 Разград              ","17"]
["18 Русе                 ","18"]
["19 Силистра             ","19"]
["20 Сливен               ","20"]
["21 Смолян               ","21"]
["22 София (столица)      ","22"]
["23 София                ","23"]
["24 Стара Загора         ","24"]
["25 Търговище            ","25"]
["26 Хасково              ","26"]
["27 Шумен                ","27"]
["28 Ямбол                ","28"]

{"sheet":"zav","index":6,"n_rows":196,"n_cols":3,"rows_kept":196,"cut":false,"hidden":true,"merged":[]}
["01","01  Индивидуални практики за ПМП - Благоевград","111"]
["01","01  Групови практики за ПМП - Благоевград","131"]
["01","01  Индивидуални практики за СМП - Благоевград","211"]
["01","01  Групови практики за СМП - Благоевград","231"]
["01","01  Медицински центрове - Благоевград","251"]
["01","01  Медико-дентални центрове - Благоевград","270"]
["01","01  Диагностично-консултативни центрове - Благоевград","281"]
["02","02  Индивидуални практики за ПМП - Бургас","111"]
["02","02  Групови практики за ПМП - Бургас","131"]
["02","02  Индивидуални практики за СМП - Бургас","211"]
["02","02  Групови практики за СМП - Бургас","231"]
["02","02  Медицински центрове - Бургас","251"]
["02","02  Медико-дентални центрове - Бургас","270"]
["02","02  Диагностично-консултативни центрове - Бургас","281"]
["03","03  Индивидуални практики за ПМП - Варна","111"]
["03","03  Групови практики за ПМП - Варна","131"]
["03","03  Индивидуални практики за СМП - Варна","211"]
["03","03  Групови практики за СМП - Варна","231"]
["03","03  Медицински центрове - Варна","251"]
["03","03  Медико-дентални центрове - Варна","270"]
["03","03  Диагностично-консултативни центрове - Варна","281"]
["04","04  Индивидуални практики за ПМП - Велико Търново","111"]
["04","04  Групови практики за ПМП - Велико Търново","131"]
["04","04  Индивидуални практики за СМП - Велико Търново","211"]
["04","04  Групови практики за СМП - Велико Търново","231"]
["04","04  Медицински центрове - Велико Търново","251"]
["04","04  Медико-дентални центрове - Велико Търново","270"]
["04","04  Диагностично-консултативни центрове - Велико Търново","281"]
["05","05  Индивидуални практики за ПМП - Видин","111"]
["05","05  Групови практики за ПМП - Видин","131"]
["05","05  Индивидуални практики за СМП - Видин","211"]
["05","05  Групови практики за СМП - Видин","231"]
["05","05  Медицински центрове - Видин","251"]
["05","05  Медико-дентални центрове - Видин","270"]
["05","05  Диагностично-консултативни центрове - Видин","281"]
["06","06  Индивидуални практики за ПМП - Враца","111"]
["06","06  Групови практики за ПМП - Враца","131"]
["06","06  Индивидуални практики за СМП - Враца","211"]
["06","06  Групови практики за СМП - Враца","231"]
["06","06  Медицински центрове - Враца","251"]
["06","06  Медико-дентални центрове - Враца","270"]
["06","06  Диагностично-консултативни центрове - Враца","281"]
["07","07  Индивидуални практики за ПМП - Габрово","111"]
["07","07  Групови практики за ПМП - Габрово","131"]
["07","07  Индивидуални практики за СМП - Габрово","211"]
["07","07  Групови практики за СМП - Габрово","231"]
["07","07  Медицински центрове - Габрово","251"]
["07","07  Медико-дентални центрове - Габрово","270"]
["07","07  Диагностично-консултативни центрове - Габрово","281"]
["08","08  Индивидуални практики за ПМП - Добрич","111"]
["08","08   Групови практики за ПМП - Добрич","131"]
["08","08   Индивидуални практики за СМП - Добрич","211"]
["08","08   Групови практики за СМП - Добрич","231"]
["08","08   Медицински центрове - Добрич","251"]
["08","08   Медико-дентални центрове - Добрич","270"]
["08","08   Диагностично-консултативни центрове - Добрич","281"]
["09","09   Индивидуални практики за ПМП - Кърджали","111"]
["09","09   Групови практики за ПМП - Кърджали","131"]
["09","09   Индивидуални практики за СМП - Кърджали","211"]
["09","09   Групови практики за СМП - Кърджали","231"]
["09","09   Медицински центрове - Кърджали","251"]
["09","09   Медико-дентални центрове - Кърджали","270"]
["09","09   Диагностично-консултативни центрове - Кърджали","281"]
["10","10   Индивидуални практики за ПМП - Кюстендил","111"]
[10,"10   Групови практики за ПМП - Кюстендил","131"]
[10,"10   Индивидуални практики за СМП - Кюстендил","211"]
[10,"10   Групови практики за СМП - Кюстендил","231"]
[10,"10   Медицински центрове - Кюстендил","251"]
[10,"10   Медико-дентални центрове - Кюстендил","270"]
[10,"10   Диагностично-консултативни центрове - Кюстендил","281"]
["11","11   Индивидуални практики за ПМП - Ловеч","111"]
[11,"11   Групови практики за ПМП - Ловеч","131"]
[11,"11   Индивидуални практики за СМП - Ловеч","211"]
[11,"11   Групови практики за СМП - Ловеч","231"]
[11,"11   Медицински центрове - Ловеч","251"]
[11,"11   Медико-дентални центрове - Ловеч","270"]
[11,"11   Диагностично-консултативни центрове - Ловеч","281"]
[12,"12   Индивидуални практики за ПМП - Монтана","111"]
[12,"12   Групови практики за ПМП - Монтана","131"]
[12,"12   Индивидуални практики за СМП - Монтана","211"]
[12,"12   Групови практики за СМП - Монтана","231"]
[12,"12   Медицински центрове - Монтана","251"]
[12,"12   Медико-дентални центрове - Монтана","270"]
[12,"12   Диагностично-консултативни центрове - Монтана","281"]
[13,"13   Индивидуални практики за ПМП - Пазарджик","111"]
[13,"13   Групови практики за ПМП - Пазарджик","131"]
[13,"13   Индивидуални практики за СМП - Пазарджик","211"]
[13,"13   Групови практики за СМП - Пазарджик","231"]
[13,"13   Медицински центрове - Пазарджик","251"]
[13,"13   Медико-дентални центрове - Пазарджик","270"]
[13,"13   Диагностично-консултативни центрове - Пазарджик","281"]
[14,"14   Индивидуални практики за ПМП - Перник","111"]
[14,"14   Групови практики за ПМП - Перник","131"]
[14,"14   Индивидуални практики за СМП - Перник","211"]
[14,"14   Групови практики за СМП - Перник","231"]
[14,"14   Медицински центрове - Перник","251"]
[14,"14   Медико-дентални центрове - Перник","270"]
[14,"14   Диагностично-консултативни центрове - Перник","281"]
[15,"15   Индивидуални практики за ПМП - Плевен","111"]
[15,"15   Групови практики за ПМП - Плевен","131"]
[15,"15   Индивидуални практики за СМП - Плевен","211"]
[15,"15   Групови практики за СМП - Плевен","231"]
[15,"15   Медицински центрове - Плевен","251"]
[15,"15   Медико-дентални центрове - Плевен","270"]
[15,"15   Диагностично-консултативни центрове - Плевен","281"]
[16,"16   Индивидуални практики за ПМП - Пловдив","111"]
[16,"16   Групови практики за ПМП - Пловдив","131"]
[16,"16   Индивидуални практики за СМП - Пловдив","211"]
[16,"16   Групови практики за СМП - Пловдив","231"]
[16,"16   Медицински центрове - Пловдив","251"]
[16,"16   Медико-дентални центрове - Пловдив","270"]
[16,"16   Диагностично-консултативни центрове - Пловдив","281"]
[17,"17   Индивидуални практики за ПМП - Разград","111"]
[17,"17   Групови практики за ПМП - Разград","131"]
[17,"17   Индивидуални практики за СМП - Разград","211"]
[17,"17   Групови практики за СМП - Разград","231"]
[17,"17   Медицински центрове - Разград","251"]
[17,"17   Медико-дентални центрове - Разград","270"]
[17,"17   Диагностично-консултативни центрове - Разград","281"]
[18,"18   Индивидуални практики за ПМП - Русе","111"]
[18,"18   Групови практики за ПМП - Русе","131"]
[18,"18   Индивидуални практики за СМП - Русе","211"]
[18,"18   Групови практики за СМП - Русе","231"]
[18,"18   Медицински центрове - Русе","251"]
[18,"18   Медико-дентални центрове - Русе","270"]
[18,"18   Диагностично-консултативни центрове - Русе","281"]
[19,"19   Индивидуални практики за ПМП - Силистра","111"]
[19,"19   Групови практики за ПМП - Силистра","131"]
[19,"19   Индивидуални практики за СМП - Силистра","211"]
[19,"19   Групови практики за СМП - Силистра","231"]
[19,"19   Медицински центрове - Силистра","251"]
[19,"19   Медико-дентални центрове - Силистра","270"]
[19,"19   Диагностично-консултативни центрове - Силистра","281"]
[20,"20   Индивидуални практики за ПМП - Сливен","111"]
[20,"20   Групови практики за ПМП - Сливен","131"]
[20,"20   Индивидуални практики за СМП - Сливен","211"]
[20,"20   Групови практики за СМП - Сливен","231"]
[20,"20   Медицински центрове - Сливен","251"]
[20,"20   Медико-дентални центрове - Сливен","270"]
[20,"20   Диагностично-консултативни центрове - Сливен","281"]
[21,"21   Индивидуални практики за ПМП - Смолян","111"]
[21,"21   Групови практики за ПМП - Смолян","131"]
[21,"21   Индивидуални практики за СМП - Смолян","211"]
[21,"21   Групови практики за СМП - Смолян","231"]
[21,"21   Медицински центрове - Смолян","251"]
[21,"21   Медико-дентални центрове - Смолян","270"]
[21,"21   Диагностично-консултативни центрове - Смолян","281"]
[22,"22   Индивидуални практики за ПМП - София (столица)","111"]
[22,"22   Групови практики за ПМП - София (столица)","131"]
[22,"22   Индивидуални практики за СМП - София (столица)","211"]
[22,"22   Групови практики за СМП - София (столица)","231"]
[22,"22   Медицински центрове - София (столица)","251"]
[22,"22   Медико-дентални центрове - София (столица)","270"]
[22,"22   Диагностично-консултативни центрове - София (столица)","281"]
[23,"23   Индивидуални практики за ПМП - София","111"]
[23,"23   Групови практики за ПМП - София","131"]
[23,"23   Индивидуални практики за СМП - София","211"]
[23,"23   Групови практики за СМП - София","231"]
[23,"23   Медицински центрове - София","251"]
[23,"23   Медико-дентални центрове - София","270"]
[23,"23   Диагностично-консултативни центрове - София","281"]
[24,"24   Индивидуални практики за ПМП - Стара Загора","111"]
[24,"24   Групови практики за ПМП - Стара Загора","131"]
[24,"24   Индивидуални практики за СМП - Стара Загора","211"]
[24,"24   Групови практики за СМП - Стара Загора","231"]
[24,"24   Медицински центрове - Стара Загора","251"]
[24,"24   Медико-дентални центрове - Стара Загора","270"]
[24,"24   Диагностично-консултативни центрове - Стара Загора","281"]
[25,"25   Индивидуални практики за ПМП - Търговище","111"]
[25,"25   Групови практики за ПМП - Търговище","131"]
[25,"25   Индивидуални практики за СМП - Търговище","211"]
[25,"25   Групови практики за СМП - Търговище","231"]
[25,"25   Медицински центрове - Търговище","251"]
[25,"25   Медико-дентални центрове - Търговище","270"]
[25,"25   Диагностично-консултативни центрове - Търговище","281"]
[26,"26   Индивидуални практики за ПМП - Хасково","111"]
[26,"26   Групови практики за ПМП - Хасково","131"]
[26,"26   Индивидуални практики за СМП - Хасково","211"]
[26,"26   Групови практики за СМП - Хасково","231"]
[26,"26   Медицински центрове - Хасково","251"]
[26,"26   Медико-дентални центрове - Хасково","270"]
[26,"26   Диагностично-консултативни центрове - Хасково","281"]
[27,"27   Индивидуални практики за ПМП - Шумен","111"]
[27,"27   Групови практики за ПМП - Шумен","131"]
[27,"27   Индивидуални практики за СМП - Шумен","211"]
[27,"27   Групови практики за СМП - Шумен","231"]
[27,"27   Медицински центрове - Шумен","251"]
[27,"27   Медико-дентални центрове - Шумен","270"]
[27,"27   Диагностично-консултативни центрове - Шумен","281"]
[28,"28   Индивидуални практики за ПМП - Ямбол","111"]
[28,"28   Групови практики за ПМП - Ямбол","131"]
[28,"28   Индивидуални практики за СМП - Ямбол","211"]
[28,"28   Групови практики за СМП - Ямбол","231"]
[28,"28   Медицински центрове - Ямбол","251"]
[28,"28   Медико-дентални центрове - Ямбол","270"]
[28,"28   Диагностично-консултативни центрове - Ямбол","281"]